fUSD/lending_fUSD_20251103
["ID","MTS","AMOUNT","RATE_DAILY","PERIOD"]
[392952142,1762168441401,500.0,0.00036954,120]
[392952143,1762168441489,232.47435039,0.00036954,120]
[392952144,1762168441669,500.0,0.00036954,120]
[392952145,1762168441940,500.0,0.00036954,120]
[392952146,1762168442174,500.0,0.00036954,120]
[392952147,1762168442424,500.0,0.00036954,120]
[392952148,1762168442666,500.0,0.00036954,120]
[392952149,1762168442915,500.0,0.00036954,120]
[392952150,1762168443195,500.0,0.00036954,120]
[392952151,1762168443437,500.0,0.00036954,120]
[392952152,1762168443678,410.73791116,0.00036954,120]
[392952153,1762168446575,248.35291276,0.00036954,120]
[392952154,1762168446996,308.23317172,0.00036954,120]
[392952155,1762168453289,450.26861816,0.00036954,120]
[392952156,1762168454043,583.35,0.00036954,30]
[392952157,1762168454297,583.35,0.00036954,30]
[392952158,1762168454530,583.35,0.00036954,30]
[392952159,1762168454765,583.35,0.00036954,30]
[392952160,1762168454997,583.35,0.00036954,30]
[392952161,1762168455281,583.35,0.00036954,30]
[392952162,1762168455517,583.35,0.00036954,30]
[392952163,1762168455748,583.35,0.00036954,30]
[392952164,1762168456115,583.35,0.00036954,30]
[392952165,1762168456376,583.35,0.00036954,30]
[392952166,1762168456457,500.0,0.00036954,30]
[392952167,1762168456618,583.35,0.00036954,30]
[392952168,1762168456699,500.0,0.00036954,30]
[392952169,1762168456846,583.35,0.00036954,30]
[392952170,1762168456948,500.0,0.00036954,30]
[392952171,1762168457084,583.35,0.00036954,30]
[392952172,1762168457171,500.0,0.00036954,30]
[392952173,1762168457314,583.35,0.00036954,30]
[392952174,1762168457420,500.0,0.00036954,30]
[392952175,1762168457775,583.35,0.00036954,30]
[392952176,1762168457866,500.0,0.00036954,30]
[392952177,1762168457945,583.35,0.00036954,30]
[392952178,1762168458060,500.0,0.00036954,30]
[392952179,1762168458326,583.35,0.00036954,30]
[392952180,1762168458444,583.35,0.00036954,30]
[392952181,1762168459807,379.63425982,0.00036954,120]
[392952182,1762168459984,445.40306422,0.00036954,120]
[392952183,1762168460927,271.20710571,0.00036954,120]
[392952184,1762168461961,306.87418259,0.00036954,120]
[392952185,1762168462822,634.51,0.00036954,60]
[392952186,1762168463056,634.51,0.00036954,60]
[392952187,1762168463292,634.51,0.00036954,60]
[392952188,1762168463544,634.51,0.00036954,60]
[392952189,1762168463856,634.51,0.00036954,60]
[392952190,1762168464106,634.51,0.00036954,60]
[392952191,1762168464319,217.18668107,0.00036954,90]
[392952192,1762168464441,634.51,0.00036954,60]
[392952193,1762168464585,634.51,0.00036954,60]
[392952194,1762168464833,634.51,0.00036954,60]
[392952195,1762168465090,634.51,0.00036954,60]
[392952196,1762168465346,634.51,0.00036954,60]
[392952197,1762168465571,634.51,0.00036954,60]
[392952198,1762168465815,634.51,0.00036954,60]
[392952199,1762168466075,634.51,0.00036954,60]
[392952200,1762168466345,634.51,0.00036954,60]
[392952201,1762168466427,177.87623422,0.00036954,120]
[392952202,1762168466609,634.51,0.00036954,60]
[392952203,1762168466845,634.51,0.00036954,60]
[392952204,1762168467092,634.51,0.00036954,60]
[392952205,1762168467365,634.51,0.00036954,60]
[392952206,1762168467625,634.51,0.00036954,60]
[392952207,1762168467889,634.51,0.00036954,60]
[392952208,1762168468123,634.51,0.00036954,60]
[392952209,1762168468718,634.51,0.00036954,60]
[392952210,1762168468859,634.73387375,0.00036954,60]
[392952211,1762168474851,286.56715063,0.00036954,120]
[392952212,1762168478430,218.98107935,0.00036954,120]
[392952213,1762168478906,219.3050984,0.00036954,120]
[392952214,1762168479200,500.0,0.00036954,120]
[392952215,1762168479461,500.0,0.00036954,120]
[392952216,1762168479714,500.0,0.00036954,120]
[392952217,1762168479957,500.0,0.00036954,120]
[392952218,1762168480188,500.0,0.00036954,120]
[392952219,1762168480456,500.0,0.00036954,120]
[392952220,1762168480601,268.70741202,0.00036954,120]
[392952221,1762168480677,500.0,0.00036954,120]
[392952222,1762168480768,262.07306207,0.00036954,120]
[392952223,1762168480912,500.0,0.00036954,120]
[392952224,1762168481189,500.0,0.00036954,120]
[392952225,1762168481276,163.36695361,0.00036954,120]
[392952226,1762168481409,500.0,0.00036954,120]
[392952227,1762168481643,500.0,0.00036954,120]
[392952228,1762168482870,432.60996758,0.00036954,120]
[392952229,1762168483514,429.59591277,0.00036954,120]
[392952230,1762168485397,482.36152751,0.00036954,120]
[392952231,1762168486143,313.87366831,0.00036954,120]
[392952232,1762168486382,438.00960161,0.00036954,120]
[392952233,1762168487356,500.0,0.00036954,120]
[392952234,1762168487613,500.0,0.00036954,120]
[392952235,1762168487848,500.0,0.00036954,120]
[392952236,1762168488032,171.44395524,0.00036954,120]
[392952237,1762168488117,500.0,0.00036954,120]
[392952238,1762168488566,500.0,0.00036954,120]
[392952239,1762168488646,500.0,0.00036954,120]
[392952240,1762168488811,500.0,0.00036954,120]
[392952241,1762168489132,500.0,0.00036954,120]
[392952242,1762168489342,500.0,0.00036954,120]
[392952243,1762168489639,500.0,0.00036954,120]
[392952244,1762168489808,165.80863683,0.00036954,120]
[392952245,1762168489885,229.9006667,0.00036954,120]
[392952246,1762168489960,500.0,0.00036954,120]
[392952247,1762168490112,500.0,0.00036954,120]
[392952248,1762168490348,500.0,0.00036954,120]
[392952249,1762168490589,500.0,0.00036954,120]
[392952250,1762168490818,500.0,0.00036954,120]
[392952251,1762168491060,500.0,0.00036954,120]
[392952252,1762168491341,500.0,0.00036954,120]
[392952253,1762168491635,500.0,0.00036954,120]
[392952254,1762168491875,500.0,0.00036954,120]
[392952255,1762168492109,500.0,0.00036954,120]
[392952256,1762168492350,500.0,0.00036954,120]
[392952257,1762168492628,189.44373321,0.00036954,120]
[392952258,1762168493143,252.81932635,0.00036954,120]
[392952259,1762168494959,444.28836495,0.00036954,120]
[392952260,1762168496819,434.83017241,0.00036954,120]
[392952261,1762168498687,465.21097001,0.00036954,120]
[392952262,1762168502383,369.87942303,0.00036954,120]
[392952263,1762168502960,380.54700004,0.00036954,120]
[392952264,1762168503761,313.71697077,0.00036954,120]
[392952265,1762168503992,174.23629186,0.00036954,120]
[392952266,1762168506502,344.84308612,0.00036954,120]
[392952267,1762168507061,193.93645343,0.00036954,120]
[392952268,1762168507862,260.17193095,0.00036954,120]
[392952269,1762168509221,204.02448484,0.00036954,120]
[392952270,1762168509729,468.05660807,0.00036954,120]
[392952271,1762168510502,414.58881521,0.00036954,120]
[392952272,1762168511300,282.53803353,0.00036954,120]
[392952273,1762168517445,205.10483958,0.00036954,120]
[392952274,1762168517997,293.5897171,0.00036954,120]
[392952275,1762168518569,441.69252692,0.00036954,120]
[392952276,1762168519146,481.68126691,0.00036954,120]
[392952277,1762168519839,500.0,0.00036954,120]
[392952278,1762168520015,343.79478681,0.00036954,120]
[392952279,1762168520100,500.0,0.00036954,120]
[392952280,1762168520324,624.86085538,0.00036954,120]
[392952281,1762168522901,500.0,0.00036954,120]
[392952282,1762168523153,500.0,0.00036954,120]
[392952283,1762168523526,500.0,0.00036954,120]
[392952284,1762168523765,500.0,0.00036954,120]
[392952285,1762168524000,500.0,0.00036954,120]
[392952286,1762168524247,500.0,0.00036954,120]
[392952287,1762168524467,265.86637253,0.00036954,120]
[392952288,1762168524557,500.0,0.00036954,120]
[392952289,1762168524728,500.0,0.00036954,120]
[392952290,1762168524977,500.0,0.00036954,120]
[392952291,1762168525214,500.0,0.00036954,120]
[392952292,1762168525454,500.0,0.00036954,120]
[392952293,1762168525643,227.23789713,0.00036954,120]
[392952294,1762168525745,500.0,0.00036954,120]
[392952295,1762168525980,500.0,0.00036954,120]
[392952296,1762168526235,500.0,0.00036954,120]
[392952297,1762168526392,291.32170263,0.00036954,120]
[392952298,1762168526501,500.0,0.00036954,120]
[392952299,1762168526770,500.0,0.00036954,120]
[392952300,1762168527036,500.0,0.00036954,120]
[392952301,1762168527191,424.01294689,0.00036954,120]
[392952302,1762168527283,500.0,0.00036954,120]
[392952303,1762168527375,500.0,0.00036954,120]
[392952304,1762168527602,500.0,0.00036954,120]
[392952305,1762168527851,500.0,0.00036954,120]
[392952306,1762168528027,500.0,0.00036954,120]
[392952307,1762168528125,500.0,0.00036954,120]
[392952308,1762168528243,419.27801289,0.00036954,120]
[392952309,1762168528332,500.0,0.00036954,120]
[392952310,1762168528427,500.0,0.00036954,120]
[392952311,1762168528577,500.0,0.00036954,120]
[392952312,1762168528665,500.0,0.00036954,120]
[392952313,1762168528813,536.30482454,0.00036954,120]
[392952314,1762168528901,500.0,0.00036954,120]
[392952315,1762168529057,500.0,0.00036954,120]
[392952316,1762168529294,500.0,0.00036954,120]
[392952317,1762168529527,345.37899999,0.00036954,120]
[392952318,1762168529653,303.57582292,0.00036954,120]
[392952319,1762168530731,272.95958969,0.00036954,120]
[392952320,1762168531530,167.39607964,0.00036954,120]
[392952321,1762168531627,290.2785528,0.00036954,120]
[392952322,1762168531729,500.0,0.00036954,120]
[392952323,1762168531975,500.0,0.00036954,120]
[392952324,1762168532477,500.0,0.00036954,120]
[392952325,1762168532571,368.0110622,0.00036954,120]
[392952326,1762168532801,500.0,0.00036954,120]
[392952327,1762168533022,325.10252639,0.00036954,120]
[392952328,1762168533113,500.0,0.00036954,120]
[392952329,1762168533306,500.0,0.00036954,120]
[392952330,1762168533476,209.16130008,0.00036954,120]
[392952331,1762168533602,500.0,0.00036954,120]
[392952332,1762168533857,500.0,0.00036954,120]
[392952333,1762168534124,500.0,0.00036954,120]
[392952334,1762168534359,500.0,0.00036954,120]
[392952335,1762168534448,160.82516885,0.00036954,120]
[392952336,1762168534610,181.38125146,0.00036954,120]
[392952337,1762168534717,413.09438723,0.00036954,120]
[392952338,1762168534804,215.93980906,0.00036954,120]
[392952339,1762168535093,314.69076501,0.00036954,120]
[392952340,1762168535407,442.55139843,0.00036954,120]
[392952341,1762168536373,487.78745279,0.00036954,120]
[392952342,1762168538359,211.76330781,0.00036954,120]
[392952343,1762168540828,500.0,0.00036954,120]
[392952344,1762168541012,174.52980803,0.00036954,120]
[392952345,1762168541099,210.66993155,0.00036954,120]
[392952346,1762168543616,450.87991388,0.00036954,30]
[392952347,1762168544628,303.66264285,0.00036954,120]
[392952348,1762168545002,481.89686136,0.00036954,120]
[392952349,1762168545089,220.42058823,0.00036954,120]
[392952350,1762168546881,500.0,0.00036954,120]
[392952351,1762168547082,493.67383522,0.00036954,120]
[392952352,1762168547174,500.0,0.00036954,120]
[392952353,1762168547265,269.25654591,0.00036954,120]
[392952354,1762168547357,189.03803796,0.00036954,120]
[392952355,1762168548218,409.13676278,0.00036954,120]
[392952356,1762168549581,177.37675467,0.00036954,120]
[392952357,1762168550680,391.39803843,0.00036954,120]
[392952358,1762168552216,207.08936829,0.00036954,120]
[392952359,1762168552611,151.36899053,0.00036954,120]
[392952360,1762168555114,409.92864482,0.00036954,120]
[392952361,1762168555927,313.35559493,0.00036954,120]
[392952362,1762168556082,234.9267337,0.00036954,120]
[392952363,1762168556176,429.28781573,0.00036954,120]
[392952364,1762168556663,500.0,0.00036954,120]
[392952365,1762168556943,500.0,0.00036954,120]
[392952366,1762168557410,463.77172122,0.00036954,120]
[392952367,1762168558392,161.60626258,0.00036954,120]
[392952368,1762168559514,211.00837791,0.00036954,120]
[392952369,1762168559952,443.69213741,0.00036954,120]
[392952370,1762168561735,422.84457575,0.00036954,120]
[392952371,1762168563410,432.74346858,0.00036954,120]
[392952372,1762168563577,466.59135219,0.00036954,120]
[392952373,1762168563679,388.32469813,0.00036954,120]
[392952374,1762168563772,294.49720363,0.00036954,120]
[392952375,1762168564814,340.06623339,0.00036954,120]
[392952376,1762168565432,352.6252967,0.00036954,120]
[392952377,1762168566054,500.0,0.00036954,120]
[392952378,1762168566305,500.0,0.00036954,120]
[392952379,1762168566396,324.20081643,0.00036954,120]
[392952380,1762168566550,500.0,0.00036954,120]
[392952381,1762168566795,500.0,0.00036954,120]
[392952382,1762168567023,500.0,0.00036954,120]
[392952383,1762168567302,500.0,0.00036954,120]
[392952384,1762168567536,500.0,0.00036954,120]
[392952385,1762168567774,357.54853478,0.00036954,120]
[392952386,1762168568322,359.53924067,0.00036954,120]
[392952387,1762168570588,489.98461105,0.00036954,120]
[392952388,1762168571884,472.52506673,0.00036954,120]
[392952389,1762168572415,369.4969537,0.00036954,120]
[392952390,1762168572861,374.66716002,0.00036954,120]
[392952391,1762168573536,354.67518865,0.00036954,120]
[392952392,1762168574365,242.9281503,0.00036954,120]
[392952393,1762168575159,240.0,0.00036954,120]
[392952394,1762168575582,331.77587992,0.00036954,120]
[392952395,1762168576376,256.17096602,0.00036954,120]
[392952396,1762168577754,237.48438429,0.00036954,120]
[392952397,1762168578389,212.47519514,0.00036954,120]
[392952398,1762168580402,500.0,0.00036954,120]
[392952399,1762168580662,500.0,0.00036954,120]
[392952400,1762168580903,500.0,0.00036954,120]
[392952401,1762168581231,500.0,0.00036954,120]
[392952402,1762168581664,467.49829728,0.00036954,120]
[392952403,1762168581748,500.0,0.00036954,120]
[392952404,1762168581860,500.0,0.00036954,120]
[392952405,1762168581942,500.0,0.00036954,120]
[392952406,1762168582032,500.0,0.00036954,120]
[392952407,1762168582226,500.0,0.00036954,120]
[392952408,1762168582310,500.0,0.00036954,120]
[392952409,1762168582426,249.3956466,0.00036954,120]
[392952410,1762168582515,500.0,0.00036954,120]
[392952411,1762168582600,500.0,0.00036954,120]
[392952412,1762168582727,500.0,0.00036954,120]
[392952413,1762168582811,500.0,0.00036954,120]
[392952414,1762168582964,500.0,0.00036954,120]
[392952415,1762168583053,500.0,0.00036954,120]
[392952416,1762168583241,428.22034995,0.00036954,120]
[392952417,1762168583334,500.0,0.00036954,120]
[392952418,1762168583483,500.0,0.00036954,120]
[392952419,1762168583738,500.0,0.00036954,120]
[392952420,1762168583980,477.18,0.00036954,120]
[392952421,1762168584155,284.08779503,0.00036954,120]
[392952422,1762168585134,168.99910258,0.00036954,120]
[392952423,1762168587419,310.8350137,0.00036954,120]
[392952424,1762168587619,168.79851809,0.00036954,120]
[392952425,1762168589668,243.03495532,0.00036954,120]
[392952426,1762168589800,326.68988545,0.00036954,120]
[392952427,1762168590877,237.08701571,0.00036954,120]
[392952428,1762168591564,500.0,0.00036954,120]
[392952429,1762168591818,500.0,0.00036954,120]
[392952430,1762168592064,500.0,0.00036954,120]
[392952431,1762168592311,500.0,0.00036954,120]
[392952432,1762168592459,352.65000166,0.00036954,120]
[392952433,1762168592553,500.0,0.00036954,120]
[392952434,1762168592797,500.0,0.00036954,120]
[392952435,1762168593048,500.0,0.00036954,120]
[392952436,1762168593296,500.0,0.00036954,120]
[392952437,1762168593534,500.0,0.00036954,120]
[392952438,1762168593769,500.0,0.00036954,120]
[392952439,1762168594017,500.0,0.00036954,120]
[392952440,1762168594108,164.93094414,0.00036954,120]
[392952441,1762168594255,171.92555722,0.00036954,120]
[392952442,1762168594347,500.0,0.00036954,120]
[392952443,1762168594512,500.0,0.00036954,120]
[392952444,1762168594759,500.0,0.00036954,120]
[392952445,1762168595005,500.0,0.00036954,120]
[392952446,1762168595242,304.57827304,0.00036954,120]
[392952447,1762168595774,370.26,0.00036954,120]
[392952448,1762168595889,196.23147551,0.00036954,120]
[392952449,1762168597799,500.0,0.00036954,120]
[392952450,1762168598042,500.0,0.00036954,120]
[392952451,1762168598284,500.0,0.00036954,120]
[392952452,1762168598533,500.0,0.00036954,120]
[392952453,1762168598776,500.0,0.00036954,120]
[392952454,1762168599035,500.0,0.00036954,120]
[392952455,1762168599245,500.0,0.00036954,120]
[392952456,1762168599504,500.0,0.00036954,120]
[392952457,1762168599594,500.0,0.00036954,120]
[392952458,1762168599720,500.0,0.00036954,120]
[392952459,1762168599809,500.0,0.00036954,120]
[392952460,1762168599997,500.0,0.00036954,120]
[392952461,1762168600091,500.0,0.00036954,120]
[392952462,1762168600254,500.0,0.00036954,120]
[392952463,1762168600350,500.0,0.00036954,120]
[392952464,1762168600500,500.0,0.00036954,120]
[392952465,1762168600596,500.0,0.00036954,120]
[392952466,1762168600741,500.0,0.00036954,120]
[392952467,1762168600928,500.0,0.00036954,120]
[392952468,1762168601021,500.0,0.00036954,120]
[392952469,1762168601116,274.41739797,0.00036954,120]
[392952470,1762168601210,174.83465968,0.00036954,120]
[392952471,1762168601330,500.0,0.00036954,120]
[392952472,1762168601938,500.0,0.00036954,120]
[392952473,1762168602055,500.0,0.00036954,120]
[392952474,1762168602139,617.42099568,0.00036954,120]
[392952475,1762168602247,500.0,0.00036954,120]
[392952476,1762168602387,500.0,0.00036954,120]
[392952477,1762168602495,500.0,0.00036954,120]
[392952478,1762168602618,500.0,0.00036954,120]
[392952479,1762168602711,500.0,0.00036954,120]
[392952480,1762168603174,213.55682026,0.00036954,120]
[392952481,1762168603298,500.0,0.00036954,120]
[392952482,1762168603491,299.04655151,0.00036954,120]
[392952483,1762168603839,198.76259481,0.00036954,120]
[392952484,1762168604726,261.43275768,0.00036954,120]
[392952485,1762168605011,184.18273032,0.00036954,120]
[392952486,1762168605236,291.17865105,0.00036954,120]
[392952487,1762168605426,-257.17937938,0.00014,2]
[392952488,1762168605901,500.0,0.00036954,120]
[392952489,1762168606156,500.0,0.00036954,120]
[392952490,1762168606445,500.0,0.00036954,120]
[392952491,1762168606551,165.19552064,0.00036954,120]
[392952492,1762168606680,500.0,0.00036954,120]
[392952493,1762168606951,500.0,0.00036954,120]
[392952494,1762168607507,349.22357715,0.00036954,120]
[392952495,1762168607639,500.0,0.00036954,120]
[392952496,1762168607671,-156.05637205,0.00014,2]
[392952497,1762168607792,500.0,0.00036954,120]
[392952498,1762168608041,500.0,0.00036954,120]
[392952499,1762168608294,288.18527849,0.00036954,120]
[392952500,1762168608395,300.99318279,0.00036954,120]
[392952501,1762168609821,154.49627683,0.00036954,120]
[392952502,1762168610239,324.05901317,0.00036954,120]
[392952503,1762168610482,500.0,0.00036954,120]
[392952504,1762168610723,500.0,0.00036954,120]
[392952505,1762168610957,500.0,0.00036954,120]
[392952506,1762168611022,-216.94891303,0.00014,2]
[392952507,1762168611193,500.0,0.00036954,120]
[392952508,1762168611447,500.0,0.00036954,120]
[392952509,1762168611543,171.80255558,0.00036954,120]
[392952510,1762168611628,315.44090849,0.00036954,120]
[392952511,1762168611715,500.0,0.00036954,120]
[392952512,1762168611918,500.0,0.00036954,120]
[392952513,1762168612493,582.57907319,0.00036954,120]
[392952514,1762168613419,325.97490194,0.00036954,120]
[392952515,1762168613512,254.71428123,0.00036954,120]
[392952516,1762168613939,249.54021253,0.00036954,120]
[392952517,1762168615386,283.89434967,0.00036954,120]
[392952518,1762168617215,500.0,0.00036954,120]
[392952519,1762168617444,500.0,0.00036954,120]
[392952520,1762168617675,500.0,0.00036954,120]
[392952521,1762168617944,500.0,0.00036954,120]
[392952522,1762168618173,500.0,0.00036954,120]
[392952523,1762168618406,500.0,0.00036954,120]
[392952524,1762168618671,500.0,0.00036954,120]
[392952525,1762168618945,500.0,0.00036954,120]
[392952526,1762168619174,500.0,0.00036954,120]
[392952527,1762168619296,229.74145988,0.00036954,120]
[392952528,1762168619400,500.0,0.00036954,120]
[392952529,1762168619665,500.0,0.00036954,120]
[392952530,1762168619900,500.0,0.00036954,120]
[392952531,1762168620155,215.71366663,0.00036954,120]
[392952532,1762168620399,225.4047365,0.00036954,120]
[392952533,1762168621566,465.07169788,0.00036954,120]
[392952534,1762168623436,236.09894266,0.00036954,120]
[392952535,1762168623527,171.221906,0.00036954,120]
[392952536,1762168625846,387.6228643,0.00036954,120]
[392952537,1762168626426,337.13757628,0.00036954,120]
[392952538,1762168630480,404.64412651,0.00036954,120]
[392952539,1762168632240,458.43571006,0.00036954,120]
[392952540,1762168632554,187.87435066,0.00036954,120]
[392952541,1762168636251,217.06280419,0.00036954,120]
[392952542,1762168637640,432.05061645,0.00036954,120]
[392952543,1762168638263,616.7,0.00036954,30]
[392952544,1762168638527,616.7,0.00036954,30]
[392952545,1762168638802,616.7,0.00036954,30]
[392952546,1762168639053,616.7,0.00036954,30]
[392952547,1762168639291,616.7,0.00036954,30]
[392952548,1762168639631,616.7,0.00036954,30]
[392952549,1762168639886,616.7,0.00036954,30]
[392952550,1762168640120,616.7,0.00036954,30]
[392952551,1762168640362,616.7,0.00036954,30]
[392952552,1762168640593,616.7,0.00036954,30]
[392952553,1762168640853,616.7,0.00036954,30]
[392952554,1762168641090,616.7,0.00036954,30]
[392952555,1762168641339,616.7,0.00036954,30]
[392952556,1762168641575,616.7,0.00036954,30]
[392952557,1762168641841,616.7,0.00036954,30]
[392952558,1762168641980,300.0,0.00036954,30]
[392952559,1762168642072,616.7,0.00036954,30]
[392952560,1762168642161,227.59967807,0.00036954,120]
[392952561,1762168642298,500.0,0.00036954,120]
[392952562,1762168642381,616.7,0.00036954,30]
[392952563,1762168642547,150.9190259,0.00036954,120]
[392952564,1762168642632,616.7,0.00036954,30]
[392952565,1762168642715,311.1,0.00036954,30]
[392952566,1762168642808,616.7,0.00036954,30]
[392952567,1762168643029,616.7,0.00036954,30]
[392952568,1762168643545,616.7,0.00036954,30]
[392952569,1762168643644,322.6107,0.00036954,30]
[392952570,1762168643738,616.7,0.00036954,30]
[392952571,1762168643845,616.7,0.00036954,30]
[392952572,1762168643998,616.86857223,0.00036954,30]
[392952573,1762168644097,334.5472959,0.00036954,30]
[392952574,1762168644373,200.0,0.00036954,30]
[392952575,1762168644542,235.40138297,0.00036954,120]
[392952576,1762168644649,346.92554585,0.00036954,30]
[392952577,1762168644989,300.0,0.00036954,30]
[392952578,1762168645264,359.76179104,0.00036954,30]
[392952579,1762168645930,373.07297731,0.00036954,30]
[392952580,1762168646560,386.87667747,0.00036954,30]
[392952581,1762168646652,235.36521586,0.00036954,120]
[392952582,1762168647173,401.19111454,0.00036954,30]
[392952583,1762168647769,416.03518578,0.00036954,30]
[392952584,1762168648409,431.42848765,0.00036954,30]
[392952585,1762168648998,382.2607196,0.00036954,120]
[392952586,1762168649095,431.42848765,0.00036954,30]
[392952587,1762168650335,394.65402058,0.00036954,120]
[392952588,1762168654006,164.49399969,0.00036954,120]
[392952589,1762168655248,343.68311811,0.00036954,120]
[392952590,1762168655849,490.27517713,0.00036954,120]
[392952591,1762168655934,177.97031437,0.00036954,120]
[392952592,1762168657682,325.53745208,0.00036954,120]
[392952593,1762168659638,246.14509885,0.00036954,120]
[392952594,1762168660453,206.13350361,0.00036954,120]
[392952595,1762168662652,289.15620195,0.00036954,120]
[392952596,1762168663488,243.66092297,0.00036954,120]
[392952597,1762168664431,250.63492405,0.00036954,120]
[392952598,1762168664825,421.50432333,0.00036954,120]
[392952599,1762168665375,-416.94891303,0.00013959,2]
[392952600,1762168667046,500.0,0.00036958,120]
[392952601,1762168667315,500.0,0.00036958,120]
[392952602,1762168667602,500.0,0.00036958,120]
[392952603,1762168667829,500.0,0.00036958,120]
[392952604,1762168668093,500.0,0.00036958,120]
[392952605,1762168668146,-203.01102594,0.00013959,2]
[392952606,1762168668363,500.0,0.00036958,120]
[392952607,1762168668615,500.0,0.00036958,120]
[392952608,1762168668735,397.25562436,0.00036958,120]
[392952609,1762168668854,500.0,0.00036958,120]
[392952610,1762168669119,500.0,0.00036958,120]
[392952611,1762168669355,214.67573411,0.00036958,120]
[392952612,1762168670622,242.56045662,0.00036958,120]
[392952613,1762168671878,-283.05108697,0.00013959,2]
[392952614,1762168672102,500.0,0.00036958,120]
[392952615,1762168672379,329.64347249,0.00036958,120]
[392952616,1762168672461,500.0,0.00036958,120]
[392952617,1762168672626,500.0,0.00036958,120]
[392952618,1762168672901,500.0,0.00036958,120]
[392952619,1762168673184,500.0,0.00036958,120]
[392952620,1762168673412,332.45059431,0.00036958,120]
[392952621,1762168673438,-305.57952617,0.00013959,2]
[392952622,1762168674806,178.46001035,0.00036958,120]
[392952623,1762168675594,450.11009604,0.00036958,120]
[392952624,1762168675704,257.26795978,0.00036958,120]
[392952625,1762168676555,-452.8883838,0.00013959,2]
[392952626,1762168676762,291.00233932,0.00036958,120]
[392952627,1762168677581,500.0,0.00036958,30]
[392952628,1762168677688,500.0,0.00036958,30]
[392952629,1762168677809,500.0,0.00036958,30]
[392952630,1762168678041,500.0,0.00036958,30]
[392952631,1762168678296,500.0,0.00036958,30]
[392952632,1762168678387,331.18040523,0.00036958,120]
[392952633,1762168678537,334.31160793,0.00036958,30]
[392952634,1762168679287,375.04551687,0.00036958,120]
[392952635,1762168681627,-177.39914225,0.00013959,2]
[392952636,1762168682591,500.0,0.00036958,120]
[392952637,1762168683175,445.74913701,0.00036958,120]
[392952638,1762168685617,327.40869821,0.00036958,120]
[392952639,1762168687043,173.17820835,0.00036958,120]
[392952640,1762168687485,-207.58530212,0.00013959,2]
[392952641,1762168688998,-347.2302635,0.00013959,2]